[Event "Titled Tuesday Blitz October 5 2021"]
[White "Baskin, Robert"]
[Black "Lehtosaari, Mauri"]
[WhiteFideId "24662402"]
[BlackFideId "501999"]
[WhiteElo "2521"]
[BlackElo "2450"]
[Result "1-0"]
[Round "05"]
[TimeControl "180+1"]
[Date "2021.10.05"]
[WhiteClock "0:00:06"]
[BlackClock "0:00:18"]

1. e4 {[%clk 0:03:00]}  c5 {[%clk 0:02:58]} 2. Nf3 {[%clk 0:03:00]}  e6 {[%clk 0:02:59]} 3. d4 {[%clk 0:03:00]}  cxd4 {[%clk 0:03:00]} 4. Nxd4 {[%clk 0:03:00]}  Qb6 {[%clk 0:03:00]} 5. Be3 {[%clk 0:02:59]}  Bc5 {[%clk 0:02:55]} 6. Na3 {[%clk 0:02:59]}  d5 {[%clk 0:02:40]} 7. exd5 {[%clk 0:02:28]}  exd5 {[%clk 0:02:40]} 8. Bb5+ {[%clk 0:02:28]}  Bd7 {[%clk 0:02:19]} 9. O-O {[%clk 0:02:28]}  Ne7 {[%clk 0:02:16]} 10. c3 {[%clk 0:02:26]}  O-O {[%clk 0:02:11]} 11. b4 {[%clk 0:02:22]}  Bxd4 {[%clk 0:01:57]} 12. Bxd4 {[%clk 0:02:23]}  Qc7 {[%clk 0:01:55]} 13. Bd3 {[%clk 0:02:15]}  Nbc6 {[%clk 0:01:50]} 14. Nb5 {[%clk 0:02:09]}  Qd8 {[%clk 0:01:45]} 15. Qh5 {[%clk 0:02:07]}  g6 {[%clk 0:01:33]} 16. Qh6 {[%clk 0:02:06]}  Nxd4 {[%clk 0:01:33]} 17. Nxd4 {[%clk 0:02:06]}  Nc6 {[%clk 0:01:30]} 18. Nf3 {[%clk 0:01:56]}  Qf6 {[%clk 0:01:29]} 19. Rac1 {[%clk 0:01:49]}  Rac8 {[%clk 0:01:26]} 20. Rfe1 {[%clk 0:01:47]}  Rfe8 {[%clk 0:01:25]} 21. Ng5 {[%clk 0:01:30]}  Qg7 {[%clk 0:01:16]} 22. Qxg7+ {[%clk 0:01:27]}  Kxg7 {[%clk 0:01:16]} 23. f4 {[%clk 0:01:18]}  Bg4 {[%clk 0:01:06]} 24. Rxe8 {[%clk 0:01:12]}  Rxe8 {[%clk 0:01:05]} 25. h3 {[%clk 0:01:12]}  h6 {[%clk 0:00:57]} 26. Nxf7 {[%clk 0:01:12]}  Bxh3 {[%clk 0:00:40]} 27. Nd6 {[%clk 0:01:03]}  Re3 {[%clk 0:00:40]} 28. Rd1 {[%clk 0:01:02]}  Bg4 {[%clk 0:00:39]} 29. Rd2 {[%clk 0:01:02]}  b6 {[%clk 0:00:37]} 30. Kf2 {[%clk 0:00:59]}  Re6 {[%clk 0:00:36]} 31. Nb5 {[%clk 0:00:58]}  a5 {[%clk 0:00:35]} 32. a3 {[%clk 0:00:55]}  Rf6 {[%clk 0:00:25]} 33. Kg3 {[%clk 0:00:53]}  Bd7 {[%clk 0:00:23]} 34. Nc7 {[%clk 0:00:43]}  Rd6 {[%clk 0:00:21]} 35. Be4 {[%clk 0:00:35]}  Ne7 {[%clk 0:00:21]} 36. Nxd5 {[%clk 0:00:27]}  Nxd5 {[%clk 0:00:20]} 37. Rxd5 {[%clk 0:00:27]}  Rxd5 {[%clk 0:00:20]} 38. Bxd5 {[%clk 0:00:28]}  Kf6 {[%clk 0:00:20]} 39. Kf3 {[%clk 0:00:27]}  Ke7 {[%clk 0:00:17]} 40. Ke3 {[%clk 0:00:27]}  Kd6 {[%clk 0:00:18]} 41. Kd4 {[%clk 0:00:27]}  axb4 {[%clk 0:00:17]} 42. cxb4 {[%clk 0:00:28]}  g5 {[%clk 0:00:16]} 43. fxg5 {[%clk 0:00:27]}  hxg5 {[%clk 0:00:17]} 44. g3 {[%clk 0:00:26]}  Ba4 {[%clk 0:00:16]} 45. Be4 {[%clk 0:00:24]}  Bb5 {[%clk 0:00:16]} 46. Bc2 {[%clk 0:00:24]}  Bc6 {[%clk 0:00:16]} 47. a4 {[%clk 0:00:24]}  Bb7 {[%clk 0:00:16]} 48. a5 {[%clk 0:00:23]}  bxa5 {[%clk 0:00:16]} 49. bxa5 {[%clk 0:00:23]}  Ba6 {[%clk 0:00:16]} 50. Bd3 {[%clk 0:00:21]}  Bc8 {[%clk 0:00:16]} 51. a6 {[%clk 0:00:14]}  Kc7 {[%clk 0:00:16]} 52. Ke5 {[%clk 0:00:10]}  Kb6 {[%clk 0:00:16]} 53. Kf6 {[%clk 0:00:09]}  g4 {[%clk 0:00:16]} 54. Kg5 {[%clk 0:00:09]}  Ka7 {[%clk 0:00:16]} 55. Bf5 {[%clk 0:00:08]}  Bxa6 {[%clk 0:00:16]} 56. Bxg4 {[%clk 0:00:07]}  Kb6 {[%clk 0:00:16]} 57. Be6 {[%clk 0:00:08]}  Be2 {[%clk 0:00:16]} 58. Bg4 {[%clk 0:00:05]}  Bd3 {[%clk 0:00:16]} 59. Bf3 {[%clk 0:00:05]}  Kc7 {[%clk 0:00:16]} 60. g4 {[%clk 0:00:05]}  Kd6 {[%clk 0:00:17]} 61. Kf6 {[%clk 0:00:06]}  Kd7 {[%clk 0:00:16]} 62. g5 {[%clk 0:00:04]}  Ke8 {[%clk 0:00:16]} 63. Bh5+ {[%clk 0:00:04]}  Kf8 {[%clk 0:00:16]} 64. Bg6 {[%clk 0:00:04]}  Bxg6 {[%clk 0:00:16]} 65. Kxg6 {[%clk 0:00:04]}  Kg8 {[%clk 0:00:16]} 66. Kf6 {[%clk 0:00:05]}  Kf8 {[%clk 0:00:17]} 67. g6 {[%clk 0:00:05]}  Kg8 {[%clk 0:00:17]} 68. g7 {[%clk 0:00:06]}  Kh7 {[%clk 0:00:18]} 69. Kf7 {[%clk 0:00:06]} 1-0


[Site "https://www.chess.com"]

[Event "Titled Tuesday Blitz October 5 2021"]
[White "Begmuratov, Khumoyun"]
[Black "Al-Tarboush, Ward"]
[WhiteFideId "14210207"]
[BlackFideId "7601450"]
[WhiteElo "1948"]
[BlackElo "2296"]
[Result "0-1"]
[Round "05"]
[TimeControl "180+1"]
[Date "2021.10.05"]
[WhiteClock "0:00:03"]
[BlackClock "0:00:06"]

1. Nf3 {[%clk 0:02:56]}  d5 {[%clk 0:02:58]} 2. c4 {[%clk 0:02:55]}  c6 {[%clk 0:02:59]} 3. cxd5 {[%clk 0:02:55]}  cxd5 {[%clk 0:03:00]} 4. d4 {[%clk 0:02:54]}  Nf6 {[%clk 0:03:00]} 5. Nc3 {[%clk 0:02:55]}  Nc6 {[%clk 0:03:00]} 6. g3 {[%clk 0:02:53]}  Bf5 {[%clk 0:02:56]} 7. Bg2 {[%clk 0:02:50]}  e6 {[%clk 0:02:56]} 8. O-O {[%clk 0:02:50]}  Bd6 {[%clk 0:02:55]} 9. a3 {[%clk 0:02:46]}  O-O {[%clk 0:02:54]} 10. b4 {[%clk 0:02:38]}  Rc8 {[%clk 0:02:54]} 11. Bb2 {[%clk 0:02:37]}  h6 {[%clk 0:02:45]} 12. Rc1 {[%clk 0:02:34]}  Qe7 {[%clk 0:02:42]} 13. Qa4 {[%clk 0:02:17]}  a6 {[%clk 0:02:37]} 14. Rfd1 {[%clk 0:02:05]}  Qd7 {[%clk 0:02:25]} 15. e3 {[%clk 0:01:56]}  b5 {[%clk 0:02:25]} 16. Qxa6 {[%clk 0:01:39]}  Na7 {[%clk 0:02:25]} 17. Ne5 {[%clk 0:01:34]}  Bxe5 {[%clk 0:02:17]} 18. dxe5 {[%clk 0:01:35]}  Rc6 {[%clk 0:01:48]} 19. Qa5 {[%clk 0:01:32]}  Qb7 {[%clk 0:01:48]} 20. Ne2 {[%clk 0:01:19]}  Ne4 {[%clk 0:01:07]} 21. Nd4 {[%clk 0:00:57]}  Ra8 {[%clk 0:01:07]} 22. Bf1 {[%clk 0:00:50]}  Rb6 {[%clk 0:00:48]} 23. f3 {[%clk 0:00:20]}  Ng5 {[%clk 0:00:38]} 24. h4 {[%clk 0:00:19]}  Nxf3+ {[%clk 0:00:28]} 25. Nxf3 {[%clk 0:00:18]}  Nc6 {[%clk 0:00:28]} 26. Qxb6 {[%clk 0:00:14]}  Qxb6 {[%clk 0:00:27]} 27. Rc5 {[%clk 0:00:15]}  Be4 {[%clk 0:00:24]} 28. Nd4 {[%clk 0:00:12]}  Nxe5 {[%clk 0:00:24]} 29. Rxb5 {[%clk 0:00:12]}  Nf3+ {[%clk 0:00:22]} 30. Kf2 {[%clk 0:00:09]}  Qc7 {[%clk 0:00:17]} 31. Nxf3 {[%clk 0:00:06]}  Bxf3 {[%clk 0:00:17]} 32. Rc1 {[%clk 0:00:06]}  Qd7 {[%clk 0:00:12]} 33. Kxf3 {[%clk 0:00:06]}  e5 {[%clk 0:00:12]} 34. Bxe5 {[%clk 0:00:05]}  Qf5+ {[%clk 0:00:11]} 35. Bf4 {[%clk 0:00:05]}  g5 {[%clk 0:00:12]} 36. hxg5 {[%clk 0:00:06]}  hxg5 {[%clk 0:00:13]} 37. Rcc5 {[%clk 0:00:04]}  Qe4+ {[%clk 0:00:12]} 38. Kg4 {[%clk 0:00:04]}  gxf4 {[%clk 0:00:11]} 39. exf4 {[%clk 0:00:03]}  f5+ {[%clk 0:00:11]} 40. Kg5 {[%clk 0:00:02]}  Qe7+ {[%clk 0:00:11]} 41. Kxf5 {[%clk 0:00:02]}  Rf8+ {[%clk 0:00:10]} 42. Kg4 {[%clk 0:00:03]}  Qe6+ {[%clk 0:00:10]} 43. Kf3 {[%clk 0:00:03]}  Qe4+ {[%clk 0:00:10]} 44. Kf2 {[%clk 0:00:04]}  Qd4+ {[%clk 0:00:11]} 45. Kf3 {[%clk 0:00:05]}  Qe4+ {[%clk 0:00:08]} 46. Kf2 {[%clk 0:00:05]}  Rd8 {[%clk 0:00:07]} 47. Bg2 {[%clk 0:00:04]}  Qd4+ {[%clk 0:00:07]} 48. Kf3 {[%clk 0:00:04]}  Qd1+ {[%clk 0:00:06]} 49. Kf2 {[%clk 0:00:04]}  Qd2+ {[%clk 0:00:06]} 50. Kf3 {[%clk 0:00:03]}  Re8 {[%clk 0:00:06]} 51. Kg4 {[%clk 0:00:01]}  Qxg2 {[%clk 0:00:05]} 52. Rxd5 {[%clk 0:00:01]}  Qe2+ {[%clk 0:00:05]} 53. Kg5 {[%clk 0:00:02]}  Qe7+ {[%clk 0:00:05]} 54. Kg4 {[%clk 0:00:02]}  Qe6+ {[%clk 0:00:05]} 55. f5 {[%clk 0:00:02]}  Qe4+ {[%clk 0:00:06]} 56. Kg5 {[%clk 0:00:03]}  Qe3+ {[%clk 0:00:06]} 57. Kf6 {[%clk 0:00:03]}  Qh6# {[%clk 0:00:06]} 0-1


[Site "https://www.chess.com"]

[Event "Titled Tuesday Blitz October 5 2021"]
[White "Begunov, Konstantin"]
[Black "Stoyanov, Tsvetan"]
[WhiteFideId "4118510"]
[BlackFideId "2917173"]
[WhiteElo "2262"]
[BlackElo "2191"]
[Result "0-1"]
[Round "05"]
[TimeControl "180+1"]
[Date "2021.10.05"]
[WhiteClock "0:00:01"]
[BlackClock "0:00:54"]

1. d4 {[%clk 0:02:34]}  g6 {[%clk 0:02:59]} 2. c4 {[%clk 0:02:34]}  Bg7 {[%clk 0:02:59]} 3. Nc3 {[%clk 0:02:34]}  c5 {[%clk 0:02:59]} 4. Nf3 {[%clk 0:02:34]}  cxd4 {[%clk 0:02:58]} 5. Nxd4 {[%clk 0:02:34]}  Nc6 {[%clk 0:02:59]} 6. e3 {[%clk 0:02:35]}  Nf6 {[%clk 0:02:58]} 7. Be2 {[%clk 0:02:35]}  O-O {[%clk 0:02:57]} 8. O-O {[%clk 0:02:30]}  d6 {[%clk 0:02:57]} 9. b3 {[%clk 0:02:28]}  Nxd4 {[%clk 0:02:53]} 10. exd4 {[%clk 0:02:27]}  Bf5 {[%clk 0:02:53]} 11. Bb2 {[%clk 0:02:22]}  d5 {[%clk 0:02:54]} 12. c5 {[%clk 0:02:04]}  Ne4 {[%clk 0:02:51]} 13. b4 {[%clk 0:01:59]}  a5 {[%clk 0:02:41]} 14. b5 {[%clk 0:01:50]}  h5 {[%clk 0:02:24]} 15. f3 {[%clk 0:01:49]}  Ng5 {[%clk 0:02:13]} 16. Na4 {[%clk 0:01:35]}  Ne6 {[%clk 0:02:12]} 17. Nb6 {[%clk 0:01:29]}  Rb8 {[%clk 0:02:04]} 18. Qd2 {[%clk 0:01:26]}  h4 {[%clk 0:02:00]} 19. Rfd1 {[%clk 0:01:18]}  Kh7 {[%clk 0:01:54]} 20. Qxa5 {[%clk 0:01:16]}  Nxc5 {[%clk 0:01:53]} 21. Bc3 {[%clk 0:00:55]}  Ne6 {[%clk 0:01:50]} 22. g4 {[%clk 0:00:27]}  Nf4 {[%clk 0:01:39]} 23. Bf1 {[%clk 0:00:23]}  Be6 {[%clk 0:01:35]} 24. Na4 {[%clk 0:00:19]}  Qxa5 {[%clk 0:01:25]} 25. Bxa5 {[%clk 0:00:20]}  Ra8 {[%clk 0:01:25]} 26. Bc7 {[%clk 0:00:20]}  Rxa4 {[%clk 0:01:21]} 27. Bxf4 {[%clk 0:00:19]}  Bxd4+ {[%clk 0:01:21]} 28. Rxd4 {[%clk 0:00:15]}  Rxd4 {[%clk 0:01:22]} 29. Be5 {[%clk 0:00:15]}  Ra4 {[%clk 0:01:22]} 30. Bd3 {[%clk 0:00:06]}  Rc8 {[%clk 0:01:19]} 31. a3 {[%clk 0:00:06]}  f6 {[%clk 0:01:14]} 32. Bb2 {[%clk 0:00:05]}  Bd7 {[%clk 0:01:08]} 33. Re1 {[%clk 0:00:03]}  e5 {[%clk 0:01:08]} 34. g5 {[%clk 0:00:04]}  e4 {[%clk 0:01:06]} 35. fxe4 {[%clk 0:00:03]}  dxe4 {[%clk 0:01:03]} 36. Rxe4 {[%clk 0:00:04]}  Rxe4 {[%clk 0:01:01]} 37. Bxe4 {[%clk 0:00:05]}  fxg5 {[%clk 0:00:55]} 38. Bxb7 {[%clk 0:00:04]}  Rb8 {[%clk 0:00:55]} 39. Be4 {[%clk 0:00:01]}  Rxb5 {[%clk 0:00:54]} 0-1


[Site "https://www.chess.com"]

[Event "Titled Tuesday Blitz October 5 2021"]
[White "Berezin, Viktor"]
[Black "Ivanisevic, Ivan"]
[WhiteFideId "14107872"]
[BlackFideId "912417"]
[WhiteElo "2310"]
[BlackElo "2499"]
[Result "0-1"]
[Round "05"]
[TimeControl "180+1"]
[Date "2021.10.05"]
[WhiteClock "0:01:51"]
[BlackClock "0:02:20"]

1. d4 {[%clk 0:03:00]}  Nf6 {[%clk 0:02:59]} 2. Nf3 {[%clk 0:02:59]}  e6 {[%clk 0:03:00]} 3. g3 {[%clk 0:02:59]}  c5 {[%clk 0:02:59]} 4. c4 {[%clk 0:02:57]}  cxd4 {[%clk 0:02:58]} 5. Nxd4 {[%clk 0:02:57]}  Qc7 {[%clk 0:02:52]} 6. b3 {[%clk 0:02:51]}  a6 {[%clk 0:02:51]} 7. Bg2 {[%clk 0:02:50]}  h5 {[%clk 0:02:52]} 8. h3 {[%clk 0:02:49]}  h4 {[%clk 0:02:49]} 9. g4 {[%clk 0:02:48]}  Nc6 {[%clk 0:02:50]} 10. O-O {[%clk 0:02:40]}  Qe5 {[%clk 0:02:35]} 11. e3 {[%clk 0:02:24]}  Bc5 {[%clk 0:02:32]} 12. Bb2 {[%clk 0:02:18]}  d5 {[%clk 0:02:32]} 13. Qc2 {[%clk 0:02:11]}  Nxd4 {[%clk 0:02:28]} 14. exd4 {[%clk 0:02:11]}  Bxd4 {[%clk 0:02:28]} 15. Nc3 {[%clk 0:02:06]}  Nxg4 {[%clk 0:02:24]} 16. hxg4 {[%clk 0:02:01]}  h3 {[%clk 0:02:23]} 17. Rae1 {[%clk 0:01:51]}  Qg3 {[%clk 0:02:20]} 0-1


[Site "https://www.chess.com"]

[Event "Titled Tuesday Blitz October 5 2021"]
[White "Bordi, Kevin"]
[Black "Andreikin, Dmitry"]
[WhiteFideId "621862"]
[BlackFideId "4158814"]
[WhiteElo "2827"]
[BlackElo "2736"]
[Result "0-1"]
[Round "05"]
[TimeControl "180+1"]
[Date "2021.10.05"]
[WhiteClock "0:00:01"]
[BlackClock "0:01:12"]

1. d4 {[%clk 0:03:00]}  d5 {[%clk 0:02:57]} 2. Bf4 {[%clk 0:02:59]}  Nf6 {[%clk 0:02:56]} 3. e3 {[%clk 0:02:57]}  g6 {[%clk 0:02:52]} 4. Nf3 {[%clk 0:02:56]}  Bg7 {[%clk 0:02:53]} 5. c4 {[%clk 0:02:55]}  c5 {[%clk 0:02:52]} 6. Nc3 {[%clk 0:02:51]}  cxd4 {[%clk 0:02:52]} 7. exd4 {[%clk 0:02:39]}  Nc6 {[%clk 0:02:46]} 8. Be2 {[%clk 0:02:25]}  O-O {[%clk 0:02:46]} 9. O-O {[%clk 0:02:25]}  dxc4 {[%clk 0:02:44]} 10. Bxc4 {[%clk 0:02:25]}  Bg4 {[%clk 0:02:41]} 11. d5 {[%clk 0:02:22]}  Na5 {[%clk 0:02:39]} 12. Be2 {[%clk 0:02:18]}  Rc8 {[%clk 0:02:40]} 13. h3 {[%clk 0:02:17]}  Bxf3 {[%clk 0:02:39]} 14. Bxf3 {[%clk 0:02:18]}  Ne8 {[%clk 0:02:36]} 15. Re1 {[%clk 0:02:13]}  Nd6 {[%clk 0:02:33]} 16. Bg4 {[%clk 0:01:51]}  Rc7 {[%clk 0:02:22]} 17. Qe2 {[%clk 0:01:36]}  Nac4 {[%clk 0:02:21]} 18. Rac1 {[%clk 0:01:31]}  h5 {[%clk 0:02:07]} 19. Bf3 {[%clk 0:01:09]}  Rd7 {[%clk 0:02:03]} 20. b3 {[%clk 0:01:07]}  Nb6 {[%clk 0:02:03]} 21. Bg5 {[%clk 0:00:58]}  Nf5 {[%clk 0:01:58]} 22. Be4 {[%clk 0:00:52]}  Nd6 {[%clk 0:01:52]} 23. Bf3 {[%clk 0:00:50]}  Bf6 {[%clk 0:01:51]} 24. Bxf6 {[%clk 0:00:46]}  exf6 {[%clk 0:01:52]} 25. Bxh5 {[%clk 0:00:44]}  gxh5 {[%clk 0:01:44]} 26. Qxh5 {[%clk 0:00:43]}  Re8 {[%clk 0:01:44]} 27. Ne2 {[%clk 0:00:08]}  Rde7 {[%clk 0:01:33]} 28. Rc3 {[%clk 0:00:07]}  Ne4 {[%clk 0:01:27]} 29. Rf3 {[%clk 0:00:05]}  Qxd5 {[%clk 0:01:23]} 30. Qg4+ {[%clk 0:00:05]}  Qg5 {[%clk 0:01:22]} 31. Rf4 {[%clk 0:00:04]}  Nd5 {[%clk 0:01:18]} 32. Qxg5+ {[%clk 0:00:03]}  fxg5 {[%clk 0:01:14]} 33. Rf5 {[%clk 0:00:04]}  Nec3 {[%clk 0:01:12]} 34. Rxg5+ {[%clk 0:00:01]}  Kf8 {[%clk 0:01:12]} 0-1


[Site "https://www.chess.com"]

[Event "Titled Tuesday Blitz October 5 2021"]
[White "Boyer, Mahel"]
[Black "Vusatiuk, Vladimir"]
[WhiteFideId "45102422"]
[BlackFideId "14118610"]
[WhiteElo "2328"]
[BlackElo "2167"]
[Result "1-0"]
[Round "05"]
[TimeControl "180+1"]
[Date "2021.10.05"]
[WhiteClock "0:01:35"]
[BlackClock "0:00:04"]

1. e4 {[%clk 0:02:59]}  c5 {[%clk 0:02:59]} 2. d3 {[%clk 0:02:58]}  g6 {[%clk 0:02:59]} 3. g3 {[%clk 0:02:59]}  Bg7 {[%clk 0:02:59]} 4. Bg2 {[%clk 0:02:59]}  Nc6 {[%clk 0:03:00]} 5. f4 {[%clk 0:03:00]}  e6 {[%clk 0:03:00]} 6. Nf3 {[%clk 0:03:00]}  Nge7 {[%clk 0:03:00]} 7. O-O {[%clk 0:03:01]}  d6 {[%clk 0:02:59]} 8. c3 {[%clk 0:02:59]}  b5 {[%clk 0:02:58]} 9. Be3 {[%clk 0:02:58]}  b4 {[%clk 0:02:55]} 10. d4 {[%clk 0:02:56]}  bxc3 {[%clk 0:02:54]} 11. bxc3 {[%clk 0:02:57]}  cxd4 {[%clk 0:02:51]} 12. cxd4 {[%clk 0:02:58]}  d5 {[%clk 0:02:50]} 13. e5 {[%clk 0:02:58]}  O-O {[%clk 0:02:48]} 14. Nc3 {[%clk 0:02:58]}  Ba6 {[%clk 0:02:48]} 15. Re1 {[%clk 0:02:58]}  Na5 {[%clk 0:02:20]} 16. Na4 {[%clk 0:02:53]}  Nc4 {[%clk 0:02:16]} 17. Bf2 {[%clk 0:02:51]}  Qa5 {[%clk 0:02:13]} 18. Nc5 {[%clk 0:02:50]}  Nc6 {[%clk 0:02:00]} 19. g4 {[%clk 0:02:36]}  Rfb8 {[%clk 0:01:33]} 20. f5 {[%clk 0:02:34]}  Rb2 {[%clk 0:01:23]} 21. fxe6 {[%clk 0:02:28]}  fxe6 {[%clk 0:01:23]} 22. Nxe6 {[%clk 0:02:29]}  Rxa2 {[%clk 0:01:03]} 23. Rxa2 {[%clk 0:02:19]}  Qxa2 {[%clk 0:01:04]} 24. Nfg5 {[%clk 0:02:09]}  Nb6 {[%clk 0:00:49]} 25. Qf3 {[%clk 0:02:06]}  Nd8 {[%clk 0:00:24]} 26. Nxg7 {[%clk 0:02:00]}  Kxg7 {[%clk 0:00:25]} 27. Qf6+ {[%clk 0:02:00]}  Kg8 {[%clk 0:00:25]} 28. e6 {[%clk 0:01:58]}  Bb5 {[%clk 0:00:16]} 29. e7 {[%clk 0:01:56]}  Qa3 {[%clk 0:00:04]} 30. Qf8# {[%clk 0:01:35]} 1-0


[Site "https://www.chess.com"]

[Event "Titled Tuesday Blitz October 5 2021"]
[White "Chitlange Sakshi"]
[Black "Carnicelli, Valerio"]
[WhiteFideId "35002899"]
[BlackFideId "856185"]
[WhiteElo "1787"]
[BlackElo "2332"]
[Result "1-0"]
[Round "05"]
[TimeControl "180+1"]
[Date "2021.10.05"]
[WhiteClock "0:00:07"]
[BlackClock "0:00:27"]

1. d4 {[%clk 0:03:00]}  Nf6 {[%clk 0:02:59]} 2. Bf4 {[%clk 0:02:58]}  g6 {[%clk 0:02:58]} 3. Nc3 {[%clk 0:02:58]}  d5 {[%clk 0:02:58]} 4. h4 {[%clk 0:02:58]}  Bg7 {[%clk 0:02:58]} 5. e3 {[%clk 0:02:57]}  O-O {[%clk 0:02:58]} 6. Be2 {[%clk 0:02:57]}  c6 {[%clk 0:02:57]} 7. h5 {[%clk 0:02:54]}  Re8 {[%clk 0:02:55]} 8. hxg6 {[%clk 0:02:49]}  hxg6 {[%clk 0:02:53]} 9. Nf3 {[%clk 0:02:48]}  Nbd7 {[%clk 0:02:49]} 10. Ne5 {[%clk 0:02:32]}  Nxe5 {[%clk 0:02:47]} 11. Bxe5 {[%clk 0:02:33]}  Bf5 {[%clk 0:02:42]} 12. Bd3 {[%clk 0:02:26]}  Bxd3 {[%clk 0:02:40]} 13. Qxd3 {[%clk 0:02:25]}  Nd7 {[%clk 0:02:37]} 14. Bxg7 {[%clk 0:02:23]}  Kxg7 {[%clk 0:02:38]} 15. O-O-O {[%clk 0:02:22]}  Nf6 {[%clk 0:02:37]} 16. e4 {[%clk 0:02:18]}  dxe4 {[%clk 0:02:36]} 17. Nxe4 {[%clk 0:02:19]}  Nxe4 {[%clk 0:02:35]} 18. Qxe4 {[%clk 0:02:20]}  Qd5 {[%clk 0:02:35]} 19. Qe3 {[%clk 0:01:40]}  Qxa2 {[%clk 0:02:28]} 20. Qh6+ {[%clk 0:01:36]}  Kf6 {[%clk 0:02:28]} 21. Rd3 {[%clk 0:01:05]}  Qa1+ {[%clk 0:02:25]} 22. Kd2 {[%clk 0:01:04]}  Qa5+ {[%clk 0:02:25]} 23. Ke2 {[%clk 0:00:55]}  Ke6 {[%clk 0:02:15]} 24. Qh3+ {[%clk 0:00:48]}  Kd6 {[%clk 0:02:07]} 25. Qg3+ {[%clk 0:00:37]}  Kd7 {[%clk 0:02:06]} 26. Qg4+ {[%clk 0:00:38]}  e6 {[%clk 0:02:04]} 27. Rh7 {[%clk 0:00:33]}  Qf5 {[%clk 0:02:03]} 28. Qf3 {[%clk 0:00:25]}  Re7 {[%clk 0:01:57]} 29. Qg3 {[%clk 0:00:23]}  Qe4+ {[%clk 0:01:53]} 30. Kd2 {[%clk 0:00:20]}  a5 {[%clk 0:01:50]} 31. c3 {[%clk 0:00:20]}  a4 {[%clk 0:01:50]} 32. Rf3 {[%clk 0:00:20]}  a3 {[%clk 0:01:47]} 33. Rhxf7 {[%clk 0:00:19]}  Re8 {[%clk 0:01:10]} 34. bxa3 {[%clk 0:00:17]}  Qb1 {[%clk 0:01:07]} 35. Qe5 {[%clk 0:00:14]}  Qb2+ {[%clk 0:01:04]} 36. Kd3 {[%clk 0:00:14]}  Qxa3 {[%clk 0:01:03]} 37. R3f6 {[%clk 0:00:11]}  Qa6+ {[%clk 0:00:58]} 38. Ke3 {[%clk 0:00:11]}  c5 {[%clk 0:00:40]} 39. dxc5 {[%clk 0:00:07]}  Qc6 {[%clk 0:00:36]} 40. Qd4+ {[%clk 0:00:07]}  Kc7 {[%clk 0:00:33]} 41. Rxe7+ {[%clk 0:00:07]}  Rxe7 {[%clk 0:00:34]} 42. Rf8 {[%clk 0:00:08]}  Rd7 {[%clk 0:00:27]} 43. Qf4+ {[%clk 0:00:07]} 1-0


[Site "https://www.chess.com"]

[Event "Titled Tuesday Blitz October 5 2021"]
[White "Cunha, Lucas Aguiar"]
[Black "Yakubboev, Nodirbek"]
[WhiteFideId "2125404"]
[BlackFideId "14203987"]
[WhiteElo "2361"]
[BlackElo "2464"]
[Result "0-1"]
[Round "05"]
[TimeControl "180+1"]
[Date "2021.10.05"]
[WhiteClock "0:00:13"]
[BlackClock "0:00:06"]

1. e4 {[%clk 0:03:00]}  c6 {[%clk 0:02:49]} 2. d4 {[%clk 0:02:59]}  d5 {[%clk 0:02:49]} 3. e5 {[%clk 0:03:00]}  Bf5 {[%clk 0:02:49]} 4. Nf3 {[%clk 0:03:00]}  e6 {[%clk 0:02:50]} 5. Be2 {[%clk 0:03:01]}  Nd7 {[%clk 0:02:50]} 6. O-O {[%clk 0:03:01]}  h6 {[%clk 0:02:50]} 7. Nbd2 {[%clk 0:03:01]}  Ne7 {[%clk 0:02:47]} 8. Nb3 {[%clk 0:03:02]}  Qc7 {[%clk 0:02:48]} 9. a4 {[%clk 0:03:02]}  a5 {[%clk 0:02:47]} 10. Bd2 {[%clk 0:03:02]}  g5 {[%clk 0:02:46]} 11. Ne1 {[%clk 0:03:01]}  c5 {[%clk 0:02:47]} 12. Nxc5 {[%clk 0:02:31]}  Nxc5 {[%clk 0:02:38]} 13. dxc5 {[%clk 0:02:32]}  Nc6 {[%clk 0:02:33]} 14. Nd3 {[%clk 0:02:18]}  Bxd3 {[%clk 0:02:23]} 15. Bxd3 {[%clk 0:02:19]}  Bxc5 {[%clk 0:02:23]} 16. Bb5 {[%clk 0:02:03]}  Ke7 {[%clk 0:01:58]} 17. Re1 {[%clk 0:01:54]}  Nxe5 {[%clk 0:01:45]} 18. Bc3 {[%clk 0:01:43]}  f6 {[%clk 0:01:40]} 19. Qe2 {[%clk 0:01:28]}  Raf8 {[%clk 0:01:31]} 20. Rad1 {[%clk 0:01:26]}  h5 {[%clk 0:01:10]} 21. Kh1 {[%clk 0:01:20]}  h4 {[%clk 0:00:57]} 22. f3 {[%clk 0:01:08]}  Bd6 {[%clk 0:00:51]} 23. Bd4 {[%clk 0:01:05]}  Kf7 {[%clk 0:00:44]} 24. b3 {[%clk 0:01:04]}  Kg7 {[%clk 0:00:38]} 25. c4 {[%clk 0:00:56]}  dxc4 {[%clk 0:00:21]} 26. bxc4 {[%clk 0:00:57]}  Rf7 {[%clk 0:00:18]} 27. Qe3 {[%clk 0:00:56]}  Rc8 {[%clk 0:00:14]} 28. Bb6 {[%clk 0:00:50]}  Qb8 {[%clk 0:00:14]} 29. c5 {[%clk 0:00:50]}  Bc7 {[%clk 0:00:13]} 30. Rd4 {[%clk 0:00:37]}  Bxb6 {[%clk 0:00:11]} 31. cxb6 {[%clk 0:00:38]}  Rc2 {[%clk 0:00:11]} 32. Red1 {[%clk 0:00:36]}  Qc8 {[%clk 0:00:11]} 33. h3 {[%clk 0:00:19]}  Qc5 {[%clk 0:00:10]} 34. f4 {[%clk 0:00:19]}  gxf4 {[%clk 0:00:09]} 35. Qxf4 {[%clk 0:00:20]}  Ng6 {[%clk 0:00:09]} 36. Qg4 {[%clk 0:00:19]}  f5 {[%clk 0:00:10]} 37. Qg5 {[%clk 0:00:19]}  Qe7 {[%clk 0:00:06]} 38. Qe3 {[%clk 0:00:18]}  f4 {[%clk 0:00:05]} 39. Qf3 {[%clk 0:00:17]}  Ne5 {[%clk 0:00:03]} 40. Qe4 {[%clk 0:00:17]}  Rc5 {[%clk 0:00:02]} 41. Rd6 {[%clk 0:00:14]}  Qg5 {[%clk 0:00:02]} 42. Rg1 {[%clk 0:00:14]}  Qf5 {[%clk 0:00:01]} 43. Qe1 {[%clk 0:00:13]}  f3 {[%clk 0:00:01]} 44. Qf2 {[%clk 0:00:13]}  Rc3 {[%clk 0:00:01]} 45. Rd4 {[%clk 0:00:13]}  Ng6 {[%clk 0:00:01]} 46. Rg4 {[%clk 0:00:13]}  fxg2+ {[%clk 0:00:01]} 47. Qxg2 {[%clk 0:00:13]}  Rg3 {[%clk 0:00:01]} 48. Rxg3 {[%clk 0:00:14]}  hxg3 {[%clk 0:00:02]} 49. Qxg3 {[%clk 0:00:15]}  Qd5+ {[%clk 0:00:03]} 50. Rg2 {[%clk 0:00:14]}  Rf6 {[%clk 0:00:03]} 51. Bd3 {[%clk 0:00:14]}  Qh5 {[%clk 0:00:03]} 52. Qc7+ {[%clk 0:00:13]}  Kh6 {[%clk 0:00:03]} 53. Kh2 {[%clk 0:00:13]}  Qe5+ {[%clk 0:00:03]} 54. Qxe5 {[%clk 0:00:13]}  Nxe5 {[%clk 0:00:04]} 55. Be4 {[%clk 0:00:14]}  Nc4 {[%clk 0:00:05]} 56. Kg3 {[%clk 0:00:14]}  Nxb6 {[%clk 0:00:05]} 57. Bxb7 {[%clk 0:00:15]}  Nxa4 {[%clk 0:00:05]} 58. Ra2 {[%clk 0:00:15]}  Nc5 {[%clk 0:00:06]} 59. Bf3 {[%clk 0:00:14]}  Rf5 {[%clk 0:00:06]} 60. Ra4 {[%clk 0:00:13]}  Nxa4 {[%clk 0:00:06]} 0-1


[Site "https://www.chess.com"]